[Event "3rd FIDE WCCC Rapid G10 2019"]
[Site "Minsk"]
[Date "2019.08.16"]
[Round "4.2"]
[White "Sidorenja, Milena"]
[Black "Nurgaliyeva, Zarina"]
[Result "0-1"]
[ECO "C44"]
[WhiteElo "1573"]
[BlackElo "1474"]
[Annotator "NA"]
[PlyCount "166"]
[EventDate "2019.08.16"]
[EventType "swiss"]
[EventCountry "BLR"]
[SourceTitle "playchess.com"]
[Source "ChessBase"]
[SourceQuality "1"]
[TimeControl "600+5"]

1. e4 {[%emt 0:00:00]} e5 {[%emt 0:00:00]} 2. Nf3 {[%emt 0:00:00]} Nc6 {[%emt 0:00:00]} 3. d4 {[%emt 0:00:00]} exd4 {[%emt 0:00:00]} 4. c3 {[%emt 0:00:01]} d5 {[%emt 0:00:01]} 5. exd5 {[%emt 0:00:02]} Qxd5 {[%emt 0:00:04]} 6. cxd4 {[%emt 0:00:02]} Nf6 {[%emt 0:00:13]} 7. Nc3 {[%emt 0:00:11]} Bb4 {[%emt 0:00:01]} 8. Bd2 {[%emt 0:00:02]} Bxc3 {[%emt 0:00:13]} 9. Bxc3 {[%emt 0:00:02]} Bg4 {[%emt 0:00:04]} 10. Be2 {[%emt 0:00:03]} O-O {[%emt 0:00:20]} 11. O-O {[%emt 0:00:04]} Rad8 {[%emt 0:00:12]} 12. Qd3 {[%emt 0:05:19]} Bf5 {[%emt 0:00:50]} 13. Qb5 {[%emt 0:00:15]} Be4 {[%emt 0:01:13]} 14. Qxd5 {[%emt 0:02:26]} Rxd5 {[%emt 0:00:17]} 15. Rad1 {[%emt 0:00:59]} Rfd8 {[%emt 0:00:02]} 16. Ne5 {[%emt 0:00:54]} Nxd4 {[%emt 0:00:24]} 17. Bc4 {[%emt 0:00:32]} Rxe5 {[%emt 0:00:02]} 18. Bxd4 {[%emt 0:00:02]} Ree8 {[%emt 0:00:10]} 19. Bc3 {[%emt 0:00:21]} Bc2 {[%emt 0:00:33]} 20. Rde1 {[%emt 0:00:02]} Rxe1 {[%emt 0:00:07]} 21. Rxe1 {[%emt 0:00:00]} Kf8 {[%emt 0:00:15]} 22. Bb4+ {[%emt 0:00:03]} Kg8 {[%emt 0:00:11]} 23. h3 {[%emt 0:00:03]} Rd1 {[%emt 0:00:03]} 24. Rxd1 {[%emt 0:00:06]} Bxd1 {[%emt 0:00:02]} 25. Bc5 {[%emt 0:00:06]} b6 {[%emt 0:00:02]} 26. Be3 {[%emt 0:00:01]} Kf8 {[%emt 0:00:05]} 27. Bf4 {[%emt 0:00:03]} c6 {[%emt 0:00:12]} 28. Bd3 {[%emt 0:00:12]} b5 {[%emt 0:00:24]} 29. g4 {[%emt 0:00:08]} Nd5 {[%emt 0:00:07]} 30. Bb8 {[%emt 0:00:02]} a5 {[%emt 0:00:05]} 31. Bd6+ {[%emt 0:00:03]} Ke8 {[%emt 0:00:03]} 32. b3 {[%emt 0:00:13]} Kd7 {[%emt 0:00:09]} 33. Be5 {[%emt 0:00:03]} g6 {[%emt 0:00:10]} 34. Bb2 {[%emt 0:00:02]} Nb4 {[%emt 0:00:02]} 35. Bb1 {[%emt 0:00:03]} Bc2 {[%emt 0:00:06]} 36. Bxc2 {[%emt 0:00:01]} Nxc2 {[%emt 0:00:01]} 37. f4 {[%emt 0:00:04]} Nb4 {[%emt 0:00:03]} 38. a3 {[%emt 0:00:12]} Nd3 {[%emt 0:00:01]} 39. Bc3 {[%emt 0:00:01]} b4 {[%emt 0:00:03]} 40. axb4 {[%emt 0:00:02]} axb4 {[%emt 0:00:01]} 41. Bd2 {[%emt 0:00:02]} c5 {[%emt 0:00:03]} 42. Kf1 {[%emt 0:00:03]} Kc6 {[%emt 0:00:04]} 43. Ke2 {[%emt 0:00:01]} Nb2 {[%emt 0:00:11]} 44. Bc1 {[%emt 0:00:02]} Na4 {[%emt 0:00:23]} 45. bxa4 {[%emt 0:00:04]} c4 {[%emt 0:00:02]} 46. Kd2 {[%emt 0:00:06]} Kb6 {[%emt 0:00:03]} 47. Kc2 {[%emt 0:00:03]} Ka5 {[%emt 0:00:01]} 48. Bd2 {[%emt 0:00:04]} Kxa4 {[%emt 0:00:02]} 49. h4 {[%emt 0:00:18]} Kb5 {[%emt 0:00:02]} 50. h5 {[%emt 0:00:06]} c3 {[%emt 0:00:02]} 51. Bxc3 {[%emt 0:00:18]} bxc3 {[%emt 0:00:03]} 52. Kxc3 {[%emt 0:00:01]} gxh5 {[%emt 0:00:05]} 53. gxh5 {[%emt 0:00:01]} Kc5 {[%emt 0:00:01]} 54. Kd3 {[%emt 0:00:02]} Kd5 {[%emt 0:00:00]} 55. Ke3 {[%emt 0:00:01]} f5 {[%emt 0:00:06]} 56. Kf3 {[%emt 0:00:04]} Kd4 {[%emt 0:00:03]} 57. h6 {[%emt 0:00:16]} Kd3 {[%emt 0:00:01]} 58. Kg3 {[%emt 0:00:05]} Ke3 {[%emt 0:00:01]} 59. Kg2 {[%emt 0:00:06]} Kxf4 {[%emt 0:00:02]} 60. Kf2 {[%emt 0:00:03]} Kg5 {[%emt 0:00:03]} 61. Kg3 {[%emt 0:00:04]} Kxh6 {[%emt 0:00:01]} 62. Kf4 {[%emt 0:00:02]} Kg6 {[%emt 0:00:01]} 63. Kg3 {[%emt 0:00:02]} Kg5 {[%emt 0:00:02]} 64. Kf3 {[%emt 0:00:02]} h5 {[%emt 0:00:01]} 65. Kg3 {[%emt 0:00:02]} f4+ {[%emt 0:00:01]} 66. Kf2 {[%emt 0:00:02]} Kg4 {[%emt 0:00:01]} 67. Kg2 {[%emt 0:00:01]} h4 {[%emt 0:00:01]} 68. Kf2 {[%emt 0:00:02]} h3 {[%emt 0:00:01]} 69. Kg1 {[%emt 0:00:01]} Kf3 {[%emt 0:00:03]} 70. Kh1 {[%emt 0:00:03]} Ke2 {[%emt 0:00:02]} 71. Kh2 {[%emt 0:00:02]} f3 {[%emt 0:00:01]} 72. Kxh3 {[%emt 0:00:03]} f2 {[%emt 0:00:01]} 73. Kg4 {[%emt 0:00:02]} f1=Q {[%emt 0:00:03]} 74. Kg5 {[%emt 0:00:02]} Qf3 {[%emt 0:00:04]} 75. Kg6 {[%emt 0:00:02]} Qf4 {[%emt 0:00:01]} 76. Kg7 {[%emt 0:00:05]} Qf5 {[%emt 0:00:01]} 77. Kg8 {[%emt 0:00:02]} Qf6 {[%emt 0:00:01]} 78. Kh7 {[%emt 0:00:01]} Qg5 {[%emt 0:00:01]} 79. Kh8 {[%emt 0:00:03]} Kf3 {[%emt 0:00:02]} 80. Kh7 {[%emt 0:00:02]} Kf4 {[%emt 0:00:01]} 81. Kh8 {[%emt 0:00:02]} Kf5 {[%emt 0:00:01]} 82. Kh7 {[%emt 0:00:01]} Kf6 {[%emt 0:00:01]} 83. Kh8 {[%emt 0:00:02]} Qg7# {[%emt 0:00:02]} 0-1

[Event "3rd FIDE WCCC Rapid G10 2019"]
[Site "Minsk"]
[Date "2019.08.16"]
[Round "4.3"]
[White "Toroptseva, Yevheniia"]
[Black "Mai, Hieu Linh"]
[Result "0-1"]
[ECO "C25"]
[WhiteElo "1496"]
[BlackElo "1344"]
[Annotator "NA"]
[PlyCount "68"]
[EventDate "2019.08.16"]
[EventType "swiss"]
[EventCountry "BLR"]
[SourceTitle "playchess.com"]
[Source "ChessBase"]
[SourceQuality "1"]
[TimeControl "600+5"]

1. e4 {[%emt 0:00:00]} e5 {[%emt 0:00:00]} 2. Nc3 {[%emt 0:00:00]} Nc6 {[%emt 0:00:07]} 3. g3 {[%emt 0:00:00]} Bc5 {[%emt 0:00:07]} 4. Bg2 {[%emt 0:00:05]} d6 {[%emt 0:00:10]} 5. Nge2 {[%emt 0:00:03]} Nf6 {[%emt 0:00:15]} 6. d3 {[%emt 0:00:05]} O-O {[%emt 0:00:08]} 7. O-O {[%emt 0:00:03]} a6 {[%emt 0:00:14]} 8. Bg5 {[%emt 0:00:07]} h6 {[%emt 0:00:05]} 9. Bxf6 {[%emt 0:00:05]} Qxf6 {[%emt 0:00:15]} 10. Nd5 {[%emt 0:00:01]} Qd8 {[%emt 0:00:20]} 11. Kh1 {[%emt 0:00:07]} Ne7 {[%emt 0:00:09]} 12. Nxe7+ {[%emt 0:00:26]} Qxe7 {[%emt 0:00:05]} 13. f4 {[%emt 0:00:09]} c6 {[%emt 0:01:09]} 14. f5 {[%emt 0:00:35]} f6 {[%emt 0:00:16]} 15. c3 {[%emt 0:00:17]} Qf7 {[%emt 0:00:47]} 16. Nc1 {[%emt 0:01:13]} Kh8 {[%emt 0:01:34]} 17. Bf3 {[%emt 0:00:24]} Bb6 {[%emt 0:01:24]} 18. Bh5 {[%emt 0:00:18]} Qe7 {[%emt 0:00:14]} 19. Bg6 {[%emt 0:00:34]} d5 {[%emt 0:00:09]} 20. Nb3 {[%emt 0:00:22]} Bd7 {[%emt 0:00:33]} 21. Qh5 {[%emt 0:00:14]} Be8 {[%emt 0:00:16]} 22. g4 {[%emt 0:00:15]} Bxg6 {[%emt 0:00:08]} 23. fxg6 {[%emt 0:00:05]} Rad8 {[%emt 0:00:37]} 24. Rf3 {[%emt 0:01:04]} dxe4 {[%emt 0:00:35]} 25. dxe4 {[%emt 0:00:03]} Rd7 {[%emt 0:00:16]} 26. Raf1 {[%emt 0:00:13]} Rfd8 {[%emt 0:00:11]} 27. g5 {[%emt 0:01:02]} fxg5 {[%emt 0:00:40]} 28. Rf7 {[%emt 0:00:10]} Qe8 {[%emt 0:00:20]} 29. Qf3 {[%emt 0:01:43]} Kg8 {[%emt 0:00:28]} 30. Qe2 {[%emt 0:01:22]} Qe6 {[%emt 0:00:15]} 31. Qf3 {[%emt 0:00:22]} Qxg6 {[%emt 0:00:09]} 32. Rf8+ {[%emt 0:00:22]} Rxf8 {[%emt 0:00:01]} 33. Qxf8+ {[%emt 0:00:01]} Kh7 {[%emt 0:00:01]} 34. Qc8 {[%emt 0:00:09]} Qxe4+ {[%emt 0:00:03]} 0-1

[Event "3rd FIDE WCCC Rapid G10 2019"]
[Site "Minsk"]
[Date "2019.08.16"]
[Round "4.5"]
[White "Kamenskaya, Marina"]
[Black "Smietanska, Wiktoria"]
[Result "0-1"]
[ECO "E12"]
[WhiteElo "1292"]
[BlackElo "1594"]
[Annotator "NA"]
[PlyCount "128"]
[EventDate "2019.08.16"]
[EventType "swiss"]
[EventCountry "BLR"]
[SourceTitle "playchess.com"]
[Source "ChessBase"]
[SourceQuality "1"]
[TimeControl "600+5"]

1. d4 {[%emt 0:00:00]} Nf6 {[%emt 0:00:00]} 2. c4 {[%emt 0:00:00]} e6 {[%emt 0:00:00]} 3. Nf3 {[%emt 0:00:00]} b6 {[%emt 0:00:00]} 4. a3 {[%emt 0:00:04]} Bb7 {[%emt 0:00:06]} 5. Bg5 {[%emt 0:00:10]} Be7 {[%emt 0:00:12]} 6. e3 {[%emt 0:00:02]} d6 {[%emt 0:00:22]} 7. Be2 {[%emt 0:01:13]} O-O {[%emt 0:00:31]} 8. O-O {[%emt 0:00:19]} Nbd7 {[%emt 0:00:26]} 9. Nc3 {[%emt 0:00:07]} h6 {[%emt 0:00:06]} 10. Bh4 {[%emt 0:00:17]} c5 {[%emt 0:01:23]} 11. d5 {[%emt 0:00:21]} e5 {[%emt 0:01:36]} 12. b4 {[%emt 0:00:28]} Nh7 {[%emt 0:00:29]} 13. Bxe7 {[%emt 0:00:10]} Qxe7 {[%emt 0:00:03]} 14. bxc5 {[%emt 0:00:06]} Nxc5 {[%emt 0:00:21]} 15. Qc2 {[%emt 0:00:58]} f5 {[%emt 0:00:25]} 16. e4 {[%emt 0:00:23]} fxe4 {[%emt 0:00:18]} 17. Nxe4 {[%emt 0:00:02]} Nxe4 {[%emt 0:00:17]} 18. Qxe4 {[%emt 0:00:02]} Nf6 {[%emt 0:00:06]} 19. Qc2 {[%emt 0:00:13]} Rac8 {[%emt 0:00:16]} 20. Qb3 {[%emt 0:00:22]} Ba6 {[%emt 0:00:34]} 21. Qa4 {[%emt 0:00:19]} Qb7 {[%emt 0:00:18]} 22. Rfe1 {[%emt 0:00:33]} Ne4 {[%emt 0:00:17]} 23. Qc2 {[%emt 0:00:58]} Nf6 {[%emt 0:00:31]} 24. Qa4 {[%emt 0:00:17]} Rc5 {[%emt 0:00:16]} 25. Rac1 {[%emt 0:00:33]} Rfc8 {[%emt 0:00:19]} 26. Nh4 {[%emt 0:00:56]} b5 {[%emt 0:01:18]} 27. Qd1 {[%emt 0:00:31]} bxc4 {[%emt 0:00:19]} 28. Nf5 {[%emt 0:00:16]} Rxd5 {[%emt 0:00:27]} 29. Qa4 {[%emt 0:00:08]} Bb5 {[%emt 0:00:18]} 30. Qb4 {[%emt 0:00:08]} Qd7 {[%emt 0:00:28]} 31. Ne3 {[%emt 0:00:10]} Rdc5 {[%emt 0:00:02]} 32. Nxc4 {[%emt 0:00:09]} Bxc4 {[%emt 0:00:17]} 33. Rxc4 {[%emt 0:00:09]} Rxc4 {[%emt 0:00:04]} 34. Bxc4+ {[%emt 0:00:01]} Kh8 {[%emt 0:00:05]} 35. Rd1 {[%emt 0:00:05]} d5 {[%emt 0:00:07]} 36. Bb5 {[%emt 0:00:05]} Qc7 {[%emt 0:00:07]} 37. h3 {[%emt 0:00:06]} Qc5 {[%emt 0:00:07]} 38. Qb2 {[%emt 0:00:06]} Ne4 {[%emt 0:00:05]} 39. a4 {[%emt 0:00:21]} d4 {[%emt 0:00:08]} 40. Bd3 {[%emt 0:00:08]} Nc3 {[%emt 0:00:04]} 41. Ra1 {[%emt 0:00:06]} e4 {[%emt 0:00:06]} 42. Ba6 {[%emt 0:00:06]} Rd8 {[%emt 0:00:04]} 43. Qc1 {[%emt 0:00:55]} Qb6 {[%emt 0:00:07]} 44. Bf1 {[%emt 0:00:04]} Rc8 {[%emt 0:00:02]} 45. Qf4 {[%emt 0:00:08]} d3 {[%emt 0:00:07]} 46. Rc1 {[%emt 0:00:05]} Qe6 {[%emt 0:00:08]} 47. Re1 {[%emt 0:00:08]} Rd8 {[%emt 0:00:04]} 48. Qc7 {[%emt 0:00:08]} Rc8 {[%emt 0:00:04]} 49. Qf4 {[%emt 0:00:02]} Qd5 {[%emt 0:00:04]} 50. Rc1 {[%emt 0:00:08]} Ne2+ {[%emt 0:00:07]} 51. Bxe2 {[%emt 0:00:02]} Rxc1+ {[%emt 0:00:01]} 52. Qxc1 {[%emt 0:00:03]} dxe2 {[%emt 0:00:01]} 53. Kh2 {[%emt 0:00:12]} Kh7 {[%emt 0:00:07]} 54. Qe3 {[%emt 0:00:06]} Qd3 {[%emt 0:00:05]} 55. Qf4 {[%emt 0:00:09]} e1=Q {[%emt 0:00:08]} 56. Qf5+ {[%emt 0:00:01]} Kg8 {[%emt 0:00:02]} 57. Qc8+ {[%emt 0:00:04]} Kf7 {[%emt 0:00:01]} 58. Qc7+ {[%emt 0:00:03]} Ke6 {[%emt 0:00:02]} 59. Qc6+ {[%emt 0:00:04]} Qd6+ {[%emt 0:00:03]} 60. Qxd6+ {[%emt 0:00:02]} Kxd6 {[%emt 0:00:01]} 61. g3 {[%emt 0:00:02]} Qxf2+ 62. Kh1 e3 {[%emt 0:00:04]} 63. g4 {[%emt 0:00:03]} e2 {[%emt 0:00:01]} 64. g5 {[%emt 0:00:01]} e1=R# {[%emt 0:00:03]} 0-1

[Event "3rd FIDE WCCC Rapid G10 2019"]
[Site "Minsk"]
[Date "2019.08.16"]
[Round "4.6"]
[White "Mutina, Sofia"]
[Black "Bezsonna, Polina"]
[Result "1-0"]
[ECO "A01"]
[WhiteElo "1421"]
[BlackElo "1409"]
[Annotator "NA"]
[PlyCount "109"]
[EventDate "2019.08.16"]
[EventType "swiss"]
[EventCountry "BLR"]
[SourceTitle "playchess.com"]
[Source "ChessBase"]
[SourceQuality "1"]
[TimeControl "600+5"]

1. b3 {[%emt 0:00:00]} e5 {[%emt 0:00:00]} 2. e3 {[%emt 0:00:00]} Nc6 {[%emt 0:00:01]} 3. Bb2 {[%emt 0:00:00]} d5 {[%emt 0:00:02]} 4. Bb5 {[%emt 0:00:02]} Bd6 {[%emt 0:00:04]} 5. f4 {[%emt 0:00:01]} Qe7 {[%emt 0:01:25]} 6. Bxc6+ {[%emt 0:00:03]} bxc6 {[%emt 0:00:02]} 7. Nf3 {[%emt 0:00:03]} Bg4 {[%emt 0:00:29]} 8. fxe5 {[%emt 0:00:02]} Bxe5 {[%emt 0:00:14]} 9. Bxe5 {[%emt 0:00:03]} Bxf3 {[%emt 0:00:07]} 10. Qxf3 Qxe5 {[%emt 0:00:07]} 11. O-O {[%emt 0:00:48]} Nf6 {[%emt 0:00:13]} 12. Nc3 {[%emt 0:00:02]} O-O {[%emt 0:00:11]} 13. Rae1 {[%emt 0:00:21]} Rad8 {[%emt 0:00:12]} 14. Ne2 {[%emt 0:00:11]} Ne4 {[%emt 0:00:21]} 15. Rd1 {[%emt 0:00:07]} Rd6 {[%emt 0:00:27]} 16. d4 {[%emt 0:00:56]} Qe7 {[%emt 0:00:34]} 17. Ng3 {[%emt 0:01:15]} Rf6 {[%emt 0:01:33]} 18. Nf5 {[%emt 0:01:02]} Qe6 {[%emt 0:00:34]} 19. Qg4 {[%emt 0:00:07]} Rg6 {[%emt 0:00:50]} 20. Qh4 {[%emt 0:00:03]} Nf6 {[%emt 0:00:53]} 21. Rf3 {[%emt 0:00:35]} Re8 {[%emt 0:00:53]} 22. Qf4 {[%emt 0:00:41]} Qd7 {[%emt 0:00:41]} 23. Rdf1 {[%emt 0:00:16]} Rg4 {[%emt 0:00:24]} 24. Nh6+ {[%emt 0:00:02]} gxh6 {[%emt 0:00:19]} 25. Qxf6 {[%emt 0:00:02]} Rg7 {[%emt 0:00:21]} 26. Qxh6 {[%emt 0:00:04]} Qe6 {[%emt 0:00:14]} 27. Qxe6 {[%emt 0:00:09]} Rxe6 {[%emt 0:00:02]} 28. Rf6 {[%emt 0:00:04]} Rxe3 {[%emt 0:00:21]} 29. Rxc6 {[%emt 0:00:02]} Re2 {[%emt 0:00:04]} 30. g3 {[%emt 0:00:02]} Re7 {[%emt 0:00:23]} 31. Ra6 {[%emt 0:00:06]} Rg6 {[%emt 0:00:04]} 32. Rxa7 {[%emt 0:00:02]} Rc6 {[%emt 0:00:05]} 33. Rf2 {[%emt 0:00:01]} Re4 {[%emt 0:00:05]} 34. Rd2 {[%emt 0:00:04]} Re8 {[%emt 0:00:06]} 35. Kf2 {[%emt 0:00:07]} Rf6+ {[%emt 0:00:02]} 36. Kg2 {[%emt 0:00:03]} Rc6 {[%emt 0:00:01]} 37. Ra5 {[%emt 0:00:03]} Rd6 {[%emt 0:00:04]} 38. c4 {[%emt 0:00:08]} dxc4 {[%emt 0:00:01]} 39. bxc4 {[%emt 0:00:01]} Red8 {[%emt 0:00:06]} 40. d5 {[%emt 0:00:03]} c6 {[%emt 0:00:02]} 41. Rc5 {[%emt 0:00:08]} cxd5 {[%emt 0:00:04]} 42. Rcxd5 {[%emt 0:00:03]} Rxd5 {[%emt 0:00:04]} 43. Rxd5 {[%emt 0:00:01]} Ra8 {[%emt 0:00:04]} 44. Rd2 {[%emt 0:00:03]} Kf8 {[%emt 0:00:05]} 45. Kf3 {[%emt 0:00:03]} Ke7 {[%emt 0:00:02]} 46. Ke4 {[%emt 0:00:02]} Ra4 {[%emt 0:00:07]} 47. Kd5 {[%emt 0:00:02]} Kd7 {[%emt 0:00:07]} 48. Kc5+ {[%emt 0:00:02]} Kc7 {[%emt 0:00:02]} 49. Kb5 {[%emt 0:00:01]} Ra8 {[%emt 0:00:04]} 50. a4 {[%emt 0:00:04]} Rb8+ {[%emt 0:00:01]} 51. Kc5 {[%emt 0:00:00]} Ra8 {[%emt 0:00:06]} 52. Ra2 {[%emt 0:00:01]} Ra5+ {[%emt 0:00:05]} 53. Kb4 {[%emt 0:00:01]} Kb6 {[%emt 0:00:02]} 54. Rf2 {[%emt 0:00:09]} Ra7 {[%emt 0:00:02]} 55. Rf6+ {[%emt 0:00:01]} 1-0

[Event "3rd FIDE WCCC Rapid G10 2019"]
[Site "Minsk"]
[Date "2019.08.17"]
[Round "5.1"]
[White "Shukhman, Anna"]
[Black "Nurgaliyeva, Zarina"]
[Result "0-1"]
[ECO "C68"]
[WhiteElo "1806"]
[BlackElo "1474"]
[Annotator "NA"]
[PlyCount "80"]
[EventDate "2019.08.16"]
[EventType "swiss"]
[EventCountry "BLR"]
[SourceTitle "playchess.com"]
[Source "ChessBase"]
[SourceQuality "1"]
[TimeControl "600+5"]

1. e4 {[%emt 0:00:00]} e5 {[%emt 0:00:00]} 2. Nf3 {[%emt 0:00:00]} Nc6 {[%emt 0:00:00]} 3. Bb5 {[%emt 0:00:01]} a6 {[%emt 0:00:00]} 4. Bxc6 {[%emt 0:00:02]} dxc6 {[%emt 0:00:00]} 5. O-O {[%emt 0:00:02]} Bg4 {[%emt 0:00:01]} 6. h3 {[%emt 0:00:01]} Bh5 {[%emt 0:00:01]} 7. d3 {[%emt 0:00:05]} f6 {[%emt 0:00:02]} 8. Nbd2 {[%emt 0:00:09]} Bd6 {[%emt 0:00:05]} 9. Nc4 {[%emt 0:00:03]} Ne7 {[%emt 0:00:16]} 10. Bd2 {[%emt 0:00:41]} c5 {[%emt 0:00:29]} 11. a4 {[%emt 0:00:16]} Nc6 {[%emt 0:00:10]} 12. c3 {[%emt 0:00:13]} Qd7 {[%emt 0:00:39]} 13. Ne3 {[%emt 0:00:16]} Rd8 {[%emt 0:00:26]} 14. Nd5 {[%emt 0:00:24]} Ne7 {[%emt 0:00:13]} 15. Ne3 {[%emt 0:00:31]} c6 {[%emt 0:00:22]} 16. g4 {[%emt 0:00:43]} Bg6 {[%emt 0:00:06]} 17. Nh4 {[%emt 0:00:10]} Bc7 {[%emt 0:00:12]} 18. Nxg6 {[%emt 0:00:50]} hxg6 {[%emt 0:00:02]} 19. Qf3 {[%emt 0:00:02]} Qxd3 {[%emt 0:00:50]} 20. Rad1 {[%emt 0:00:23]} Qd7 {[%emt 0:00:23]} 21. Kg2 {[%emt 0:00:47]} Qe6 {[%emt 0:00:22]} 22. c4 {[%emt 0:01:09]} g5 {[%emt 0:01:11]} 23. Bc3 {[%emt 0:00:26]} Ng6 {[%emt 0:00:03]} 24. Rxd8+ {[%emt 0:00:17]} Bxd8 {[%emt 0:00:02]} 25. Rh1 {[%emt 0:00:27]} Nh4+ {[%emt 0:00:01]} 26. Kg3 {[%emt 0:00:02]} Nxf3 {[%emt 0:00:03]} 27. Kxf3 {[%emt 0:00:02]} b5 {[%emt 0:00:11]} 28. b3 {[%emt 0:00:03]} bxa4 {[%emt 0:00:08]} 29. bxa4 {[%emt 0:00:02]} Qd7 {[%emt 0:00:19]} 30. Rd1 {[%emt 0:00:19]} Qc7 {[%emt 0:00:17]} 31. Kg3 {[%emt 0:00:21]} g6 {[%emt 0:00:04]} 32. Rb1 {[%emt 0:00:19]} Qh7 {[%emt 0:00:12]} 33. Rh1 {[%emt 0:00:04]} Qb7 {[%emt 0:00:02]} 34. a5 {[%emt 0:00:25]} Qb3 {[%emt 0:00:07]} 35. Rc1 {[%emt 0:00:03]} Qa3 {[%emt 0:00:15]} 36. Nd1 {[%emt 0:00:25]} Qxc1 {[%emt 0:00:03]} 37. Kg2 {[%emt 0:00:02]} Qxd1 {[%emt 0:00:02]} 38. Kh2 {[%emt 0:00:04]} Qd3 {[%emt 0:00:02]} 39. Ba1 {[%emt 0:00:02]} Qxh3+ {[%emt 0:00:02]} 40. Kg1 {[%emt 0:00:02]} Qh1# {[%emt 0:00:02]} 0-1

[Event "3rd FIDE WCCC Rapid G10 2019"]
[Site "Minsk"]
[Date "2019.08.17"]
[Round "5.2"]
[White "Mai, Hieu Linh"]
[Black "Mutina, Sofia"]
[Result "1/2-1/2"]
[ECO "C07"]
[WhiteElo "1344"]
[BlackElo "1421"]
[Annotator "NA"]
[PlyCount "65"]
[EventDate "2019.08.16"]
[EventType "swiss"]
[EventCountry "BLR"]
[SourceTitle "playchess.com"]
[Source "ChessBase"]
[SourceQuality "1"]
[TimeControl "600+5"]

1. e4 {[%emt 0:00:00]} e6 {[%emt 0:00:00]} 2. d4 {[%emt 0:00:00]} d5 {[%emt 0:00:00]} 3. Nd2 {[%emt 0:00:00]} c5 {[%emt 0:00:00]} 4. exd5 {[%emt 0:00:02]} Qxd5 {[%emt 0:00:00]} 5. dxc5 {[%emt 0:00:32]} Bxc5 {[%emt 0:00:03]} 6. Ngf3 {[%emt 0:00:02]} Nf6 {[%emt 0:00:06]} 7. Bc4 {[%emt 0:00:04]} Qd6 {[%emt 0:00:12]} 8. O-O {[%emt 0:00:05]} O-O {[%emt 0:00:02]} 9. Nb3 {[%emt 0:00:17]} Rd8 {[%emt 0:00:33]} 10. Bf4 {[%emt 0:01:05]} Qb6 {[%emt 0:00:32]} 11. Qe2 {[%emt 0:00:29]} Nc6 {[%emt 0:00:13]} 12. Rad1 {[%emt 0:00:20]} Bd7 {[%emt 0:00:03]} 13. Nxc5 {[%emt 0:00:53]} Qxc5 {[%emt 0:00:01]} 14. Ne5 {[%emt 0:00:30]} Be8 {[%emt 0:00:38]} 15. Nxc6 {[%emt 0:00:27]} Bxc6 {[%emt 0:00:01]} 16. Be3 {[%emt 0:00:11]} Qb4 {[%emt 0:00:32]} 17. c3 {[%emt 0:00:34]} Qe7 {[%emt 0:00:10]} 18. h3 {[%emt 0:00:09]} Qc7 {[%emt 0:00:34]} 19. Rxd8+ {[%emt 0:00:52]} Rxd8 {[%emt 0:00:03]} 20. Rd1 {[%emt 0:00:01]} Rxd1+ {[%emt 0:00:18]} 21. Qxd1 {[%emt 0:00:05]} h6 {[%emt 0:00:01]} 22. Qd4 {[%emt 0:00:37]} e5 {[%emt 0:03:43]} 23. Qxa7 {[%emt 0:00:15]} Bxg2 {[%emt 0:00:08]} 24. Kxg2 {[%emt 0:01:13]} Qxc4 {[%emt 0:00:02]} 25. Qxb7 {[%emt 0:00:02]} Qxa2 {[%emt 0:00:09]} 26. Qb8+ {[%emt 0:00:01]} Kh7 {[%emt 0:00:04]} 27. Qxe5 {[%emt 0:00:40]} Qxb2 {[%emt 0:00:01]} 28. Qf5+ {[%emt 0:00:16]} Kh8 {[%emt 0:00:21]} 29. Qc8+ {[%emt 0:01:19]} Kh7 {[%emt 0:00:05]} 30. Qf5+ {[%emt 0:00:22]} Kh8 {[%emt 0:00:02]} 31. Qc8+ {[%emt 0:00:22]} Kh7 {[%emt 0:00:31]} 32. Qf5+ {[%emt 0:00:03]} Kh8 {[%emt 0:00:03]} 33. Qc8+ {[%emt 0:00:04]} 1/2-1/2